bitfinex/quotes_SOLUSD_20240530
["timestamp","ask_amount","ask_price","bid_price","bid_amount"]
[1717087261985,2.1867,169.2,169.18,60.0]
[1717087262885,2.1867,169.2,169.16,19.9672]
[1717087262886,2.1867,169.2,169.16,79.9672]
[1717087263196,2.1867,169.2,169.16,77.78]
[1717087263374,2.1867,169.2,169.16,60.0]
[1717087263775,2.1867,169.2,169.15,19.9673]
[1717087264084,2.1867,169.2,169.17,60.0]
[1717087264776,2.1867,169.2,169.17,77.78]
[1717087264971,2.1866,169.21,169.17,77.78]
[1717087265866,2.1866,169.21,169.17,79.9671]
[1717087266774,2.1866,169.21,169.17,77.78]
[1717087267266,2.1868,169.2,169.17,60.0]
[1717087268193,2.1868,169.2,169.16,17.78]
[1717087268397,2.1868,169.19,169.15,79.9673]
[1717087269066,2.1868,169.2,169.15,79.9673]
[1717087269270,18.09,169.28,169.15,79.9673]
[1717087269271,18.09,169.22,169.15,19.9673]
[1717087269505,2.1869,169.19,169.14,79.9675]
[1717087269877,2.187,169.18,169.14,79.9675]
[1717087270270,2.1869,169.19,169.15,2.1873]
[1717087270480,2.1868,169.2,169.15,2.1873]
[1717087270786,2.1868,169.2,169.16,60.0]
[1717087270976,2.1868,169.19,169.16,60.0]
[1717087271173,2.1869,169.19,169.14,79.9674]
[1717087271396,2.187,169.18,169.14,79.9674]
[1717087271909,2.187,169.18,169.14,62.1874]
[1717087272097,2.187,169.18,169.14,60.0]
[1717087272272,6.05,169.15,169.14,60.0]
[1717087272467,6.05,169.15,169.14,62.1875]
[1717087272981,6.05,169.15,169.14,60.0]
[1717087273387,6.05,169.15,169.14,62.1875]
[1717087274000,2.187,169.18,169.14,62.1875]
[1717087274179,6.05,169.15,169.14,62.1875]
[1717087275611,6.05,169.15,169.14,60.0]
[1717087276192,6.05,169.15,169.14,62.1875]
[1717087276501,6.05,169.15,169.14,60.0]
[1717087276699,6.05,169.15,169.13,2.1876]
[1717087276878,2.187,169.18,169.14,77.78]
[1717087277232,2.187,169.18,169.14,62.1875]
[1717087277378,2.1869,169.19,169.16,60.0]
[1717087277697,6.05,169.17,169.16,60.0]
[1717087278104,6.05,169.17,169.14,79.9674]
[1717087278406,6.05,169.16,169.14,79.9674]
[1717087279601,6.05,169.16,169.15,2.1874]
[1717087279892,6.05,169.16,169.14,77.78]
[1717087280098,6.05,169.16,169.14,79.9675]
[1717087280299,6.05,169.16,169.11,6.05]
[1717087280300,2.1869,169.19,169.18,60.0]
[1717087280506,29.40568818,169.28,169.18,60.0]
[1717087280678,6.05,169.19,169.18,60.0]
[1717087286196,6.05,169.19,169.18,60.0]
[1717087286390,6.05,169.19,169.16,62.1872]
[1717087286592,6.05,169.17,169.16,62.1872]
[1717087286793,6.05,169.17,169.16,60.0]
[1717087288311,6.05,169.17,169.16,62.1872]
[1717087289024,24.2,169.28,169.16,77.78]
[1717087289195,6.05,169.19,169.18,60.0]
[1717087290109,2.1865,169.22,169.18,60.0]
[1717087290418,2.1863,169.23,169.18,79.9669]
[1717087290616,2.1862,169.25,169.2,62.1867]
[1717087290795,2.1862,169.24,169.2,60.0]
[1717087290995,6.05,169.21,169.2,60.0]
[1717087291223,6.05,169.21,169.18,62.1869]
[1717087291527,6.05,169.19,169.17,60.0]
[1717087291821,6.05,169.18,169.15,60.0]
[1717087292031,6.05,169.17,169.15,60.0]
[1717087292198,6.05,169.17,169.15,77.78]
[1717087292605,6.05,169.18,169.15,77.78]
[1717087293514,6.05,169.18,169.16,2.1872]
[1717087293915,6.05,169.19,169.17,79.9671]
[1717087294109,6.05,169.19,169.18,45.0]
[1717087294596,6.05,169.2,169.17,79.9671]
[1717087294797,6.05,169.19,169.17,79.9671]
[1717087295927,2.1862,169.24,169.21,60.0]
[1717087296116,6.05,169.22,169.21,60.0]
[1717087296317,2.1862,169.24,169.21,60.0]
[1717087296521,6.05,169.22,169.21,60.0]
[1717087297316,6.05,169.22,169.19,79.9668]
[1717087297512,6.05,169.21,169.2,45.0]
[1717087301235,6.05,169.22,169.2,45.0]
[1717087301455,2.1862,169.24,169.21,60.0]
[1717087301733,6.05,169.22,169.2,45.0]
[1717087301943,6.05,169.21,169.2,45.0]
[1717087303438,6.05,169.21,169.2,62.78]
[1717087303610,2.1863,169.23,169.22,60.0]
[1717087303936,8.2363,169.23,169.22,60.0]
[1717087304748,6.05,169.23,169.22,60.0]
[1717087305308,6.07944746,169.31,169.24,60.0]
[1717087305512,24.2,169.36,169.26,77.78]
[1717087305818,6.05,169.27,169.26,77.78]
[1717087306131,2.1855,169.3,169.28,60.0]
[1717087306344,6.05,169.29,169.28,60.0]
[1717087307932,4.3695,169.36,169.3,77.78]
[1717087308232,4.3689,169.38,169.32,60.0]
[1717087308409,4.3684,169.4,169.34,60.0]
[1717087308929,6.05,169.35,169.34,60.0]
[1717087309429,4.3684,169.4,169.36,60.0]
[1717087309637,6.05,169.37,169.36,60.0]
[1717087310437,2.1845,169.37,169.36,60.0]
[1717087311033,18.1,169.42,169.36,60.0]
[1717087311423,18.1,169.42,169.34,77.78]
[1717087311738,2.1845,169.38,169.35,45.0]
[1717087314638,2.1845,169.38,169.36,60.0]
[1717087315239,2.1845,169.37,169.36,60.0]
[1717087316026,4.3682,169.41,169.36,60.0]
[1717087316238,2.1844,169.38,169.36,60.0]
[1717087316635,2.1843,169.39,169.36,60.0]
[1717087317552,2.1844,169.38,169.36,60.0]
[1717087321144,4.3682,169.41,169.33,2.185]
[1717087321145,2.1845,169.37,169.34,60.0]
[1717087321343,18.1,169.43,169.34,60.0]
[1717087321344,18.1,169.4,169.34,60.0]
[1717087321550,2.1848,169.35,169.32,60.0]
[1717087322440,18.1,169.4,169.32,60.0]
[1717087322441,4.3689,169.38,169.32,60.0]
[1717087322832,4.3689,169.38,169.31,2.1853]
[1717087323152,2.1848,169.35,169.3,79.9654]
[1717087323746,2.1848,169.35,169.31,45.0]
[1717087323945,2.1849,169.34,169.31,45.0]
[1717087324149,2.1851,169.33,169.3,60.0]
[1717087324553,2.185,169.34,169.3,60.0]
[1717087325443,2.185,169.34,169.3,62.1854]
[1717087326649,2.185,169.34,169.3,60.0]
[1717087327154,2.185,169.34,169.3,62.1854]
[1717087327685,4.3692,169.37,169.32,60.0]
[1717087327971,2.1848,169.35,169.32,60.0]
[1717087330061,2.1849,169.34,169.32,60.0]
[1717087332263,6.03,169.33,169.32,60.0]
[1717087332446,6.03,169.33,169.32,105.0]
[1717087334370,2.1848,169.35,169.32,105.0]
[1717087334567,6.03,169.33,169.32,105.0]
[1717087335069,2.185,169.34,169.32,105.0]
[1717087335255,8.215,169.33,169.3,60.0]
[1717087335454,6.03,169.32,169.3,60.0]
[1717087336462,2.1852,169.32,169.3,60.0]
[1717087336768,6.03,169.31,169.3,60.0]
[1717087336974,6.03,169.31,169.28,19.9657]
[1717087337158,6.03,169.29,169.27,60.0]
[1717087337350,8.2157,169.28,169.25,60.0]
[1717087337549,6.03,169.26,169.25,60.0]
[1717087338064,6.03,169.26,169.25,62.1861]
[1717087338267,6.03,169.26,169.25,60.0]
[1717087338485,6.03,169.26,169.23,60.0]
[1717087338772,6.03,169.25,169.23,60.0]
[1717087340874,6.03,169.26,169.25,60.0]
[1717087341173,6.03,169.27,169.25,60.0]
[1717087341681,2.1855,169.3,169.27,60.0]
[1717087341852,6.03,169.28,169.27,60.0]
[1717087342050,6.05887723,169.45,169.31,60.0]
[1717087342267,2.1847,169.36,169.33,60.0]
[1717087342467,6.03,169.34,169.33,60.0]
[1717087343071,6.03,169.34,169.3,19.9654]
[1717087343072,6.03,169.34,169.31,60.0]
[1717087343254,4.3692,169.41,169.31,60.0]
[1717087343255,6.03,169.33,169.31,60.0]
[1717087344971,6.03,169.32,169.31,60.0]
[1717087345874,6.03,169.32,169.29,60.0]
[1717087346079,2.1857,169.29,169.27,60.0]
[1717087346272,6.03,169.28,169.27,60.0]
[1717087350267,6.03,169.3,169.29,60.0]
[1717087350773,8.2155,169.3,169.27,60.0]
[1717087350976,6.03,169.28,169.27,60.0]
[1717087351553,6.03,169.29,169.27,107.1858]
[1717087352054,6.03,169.3,169.27,107.1858]
[1717087352455,6.03,169.3,169.27,105.0]
[1717087352983,6.03,169.29,169.27,105.0]
[1717087353781,8.2156,169.29,169.27,105.0]
[1717087353990,6.03,169.28,169.27,60.0]
[1717087354278,6.03,169.28,169.25,62.186]
[1717087354485,2.1856,169.29,169.25,62.186]
[1717087354486,6.03,169.27,169.25,62.186]
[1717087355254,6.03,169.27,169.25,60.0]
[1717087355490,6.03,169.26,169.25,60.0]
[1717087356164,6.03,169.26,169.23,60.0]
[1717087356463,6.03,169.25,169.24,45.0]
[1717087356664,6.03,169.25,169.23,77.78]
[1717087358382,6.03,169.25,169.23,60.0]
[1717087361985,6.03,169.25,169.23,62.1863]
[1717087363997,6.03,169.25,169.23,60.0]
[1717087365693,8.2161,169.25,169.23,60.0]
[1717087370075,2.1861,169.25,169.23,60.0]
[1717087370395,6.03,169.24,169.23,60.0]
[1717087370582,8.2162,169.24,169.21,60.0]
[1717087370781,6.03,169.23,169.22,45.0]
[1717087370982,8.2163,169.23,169.21,60.0]
[1717087371380,6.03,169.23,169.21,60.0]
[1717087372575,8.2164,169.23,169.21,60.0]
[1717087378898,4.3719,169.26,169.21,60.0]
[1717087379083,6.03,169.22,169.21,60.0]
[1717087380785,6.03,169.22,169.19,19.9668]
[1717087380786,6.03,169.22,169.19,77.78]
[1717087381086,6.03,169.22,169.21,60.0]
[1717087381786,8.2166,169.22,169.19,60.0]
[1717087381984,24.12,169.28,169.17,60.0]
[1717087381985,2.1869,169.19,169.17,60.0]
[1717087382196,6.03,169.18,169.16,17.78]
[1717087382405,6.03,169.18,169.16,79.9672]
[1717087382612,6.03,169.18,169.17,2.1871]
[1717087382902,6.03,169.19,169.16,79.9672]
[1717087383079,6.03,169.19,169.17,45.0]
[1717087383503,6.03,169.19,169.18,60.0]
[1717087390527,2.187,169.18,169.15,60.0]
[1717087390711,6.03,169.17,169.15,77.78]
[1717087390913,6.03,169.17,169.15,79.9673]
[1717087400524,6.03,169.18,169.15,79.9673]
[1717087401327,6.03,169.17,169.15,79.9673]
[1717087401806,2.1869,169.19,169.15,79.9673]
[1717087402007,6.03,169.17,169.15,79.9673]
[1717087402805,4.3726,169.24,169.17,60.0]
[1717087403127,2.1867,169.21,169.17,60.0]
[1717087403304,6.03,169.19,169.17,60.0]
[1717087407623,8.2168,169.19,169.17,60.0]
[1717087409510,4.3728,169.23,169.19,60.0]
[1717087409723,8.2167,169.21,169.19,60.0]
[1717087410131,4.3728,169.23,169.19,60.0]
[1717087410132,8.2167,169.2,169.19,60.0]
[1717087410428,2.1868,169.19,169.17,60.0]
[1717087410617,6.03,169.18,169.17,60.0]
[1717087410929,6.03,169.18,169.17,105.0]
[1717087414740,6.03,169.18,169.15,2.1873]
[1717087414741,2.1872,169.16,169.15,60.0]
[1717087414944,2.1874,169.15,169.13,60.0]
[1717087415113,6.03,169.14,169.13,60.0]
[1717087415834,2.1873,169.16,169.13,60.0]
[1717087416022,6.03,169.15,169.13,60.0]
[1717087416211,6.08233182,169.27,169.19,60.0]
[1717087416212,4.3725,169.24,169.19,60.0]
[1717087416416,8.2165,169.22,169.19,60.0]
[1717087416633,2.1866,169.21,169.19,60.0]
[1717087417113,8.2166,169.21,169.19,60.0]
[1717087417314,6.03,169.21,169.19,60.0]
[1717087417515,5.20568818,169.31,169.2,45.0]
[1717087417714,6.03,169.22,169.21,77.78]
[1717087417928,6.03,169.22,169.21,122.78]
[1717087419861,2.1862,169.24,169.21,122.78]
[1717087420018,6.03,169.22,169.21,122.78]
[1717087420216,2.1862,169.24,169.21,122.78]
[1717087420425,2.186,169.26,169.23,60.0]
[1717087420645,6.03,169.24,169.23,60.0]
[1717087421336,24.12,169.28,169.23,60.0]
[1717087421708,6.03,169.24,169.23,60.0]
[1717087424550,8.2162,169.24,169.23,60.0]
[1717087425338,8.2162,169.24,169.21,122.78]
[1717087425528,8.2165,169.22,169.2,60.0]
[1717087425728,6.03,169.22,169.2,60.0]
[1717087426037,2.1864,169.23,169.2,60.0]
[1717087426038,6.03,169.21,169.2,60.0]
[1717087426250,6.03,169.21,169.2,105.0]
[1717087428118,6.03,169.21,169.2,60.0]
[1717087428323,8.2167,169.21,169.17,60.0]
[1717087428520,6.03,169.21,169.17,60.0]
[1717087428739,6.03,169.19,169.17,60.0]
[1717087430134,4.3724,169.25,169.2,60.0]
[1717087430449,6.03,169.21,169.2,60.0]
[1717087430650,6.03,169.22,169.2,105.0]
[1717087430949,6.03,169.21,169.2,105.0]
[1717087439867,6.03,169.21,169.18,60.0]
[1717087440037,24.12,169.28,169.18,60.0]
[1717087440038,6.03,169.19,169.18,60.0]
[1717087440235,6.03,169.19,169.18,105.0]
[1717087441136,6.03,169.19,169.16,60.0]
[1717087441351,6.03,169.17,169.16,60.0]
[1717087441660,6.03,169.18,169.16,60.0]
[1717087443435,6.03,169.18,169.16,62.1872]
[1717087444062,6.03,169.18,169.16,60.0]
[1717087446954,6.03,169.17,169.14,60.0]
[1717087447163,6.03,169.15,169.14,60.0]
[1717087448739,6.03,169.16,169.14,60.0]
[1717087448944,2.187,169.18,169.14,60.0]
[1717087449146,2.187,169.18,169.14,62.1875]
[1717087449434,6.03,169.17,169.14,62.1875]
[1717087450154,6.03,169.17,169.16,60.0]
[1717087452855,6.03,169.17,169.14,77.78]
[1717087455139,6.03,169.17,169.14,79.9675]
[1717087456943,6.03,169.17,169.14,77.78]
[1717087457668,6.03,169.17,169.14,79.9675]
[1717087457845,6.03,169.17,169.14,74.58324434]
[1717087459743,6.03,169.17,169.14,72.39574434]
[1717087460869,2.1869,169.19,169.14,72.39574434]
[1717087461070,6.03,169.17,169.14,72.39574434]
[1717087461483,6.03,169.17,169.16,60.0]
[1717087461969,6.03,169.18,169.16,60.0]
[1717087462146,2.1869,169.19,169.16,60.0]
[1717087462351,4.3731,169.22,169.16,60.0]
[1717087462352,2.1868,169.2,169.16,60.0]
[1717087462546,6.03,169.18,169.16,60.0]
[1717087463543,2.1868,169.19,169.16,60.0]
[1717087463772,6.03,169.18,169.16,60.0]
[1717087463970,2.1868,169.19,169.16,60.0]
[1717087464153,6.03,169.18,169.16,60.0]
[1717087471175,8.217,169.18,169.16,60.0]
[1717087471380,6.03,169.17,169.16,60.0]
[1717087477779,6.03,169.18,169.16,60.0]
[1717087480591,6.03,169.17,169.16,60.0]
[1717087484692,6.03,169.18,169.16,60.0]
[1717087489792,6.03,169.17,169.16,60.0]
[1717087490695,6.03,169.17,169.15,45.0]
[1717087490893,6.03,169.17,169.14,77.78]
[1717087491088,6.03,169.16,169.13,17.78]
[1717087491481,6.03,169.16,169.15,60.0]
[1717087492804,2.1871,169.17,169.14,45.0]
[1717087492994,6.03,169.16,169.15,60.0]
[1717087493390,2.1871,169.17,169.15,60.0]
[1717087495808,24.12,169.2,169.14,60.0]
[1717087495989,2.1872,169.17,169.14,60.0]
[1717087496184,2.1873,169.16,169.12,77.78]
[1717087497214,2.1873,169.16,169.13,45.0]
[1717087497705,2.1872,169.17,169.13,62.78]
[1717087497886,2.1873,169.16,169.13,62.78]
[1717087498083,2.1872,169.17,169.13,62.78]
[1717087501002,2.1872,169.17,169.13,45.0]
[1717087501211,4.3738,169.19,169.13,45.0]
[1717087501212,2.1872,169.16,169.13,45.0]
[1717087503432,2.1872,169.17,169.13,45.0]
[1717087504303,6.03,169.15,169.13,45.0]
[1717087505498,6.03,169.15,169.12,77.78]
[1717087506522,6.03,169.15,169.12,79.9677]
[1717087507617,6.03,169.15,169.12,17.78]
[1717087507912,6.03,169.15,169.12,77.78]
[1717087508606,6.03,169.15,169.14,60.0]
[1717087511731,6.03,169.16,169.14,60.0]
[1717087518845,2.1871,169.17,169.14,60.0]
[1717087519162,6.03,169.16,169.14,60.0]
[1717087528662,2.1871,169.17,169.14,60.0]
[1717087528840,6.03,169.16,169.14,60.0]
[1717087529038,12.12090472,169.26,169.12,2.1877]
[1717087529039,4.3729,169.23,169.16,60.0]
[1717087529239,2.1868,169.2,169.16,77.78]
[1717087529440,6.03,169.19,169.18,60.0]
[1717087532664,6.03,169.27,169.18,60.0]
[1717087532873,6.03,169.27,169.2,60.0]
[1717087533168,6.03,169.22,169.2,60.0]
[1717087533964,6.03,169.24,169.22,60.0]
[1717087535365,2.1861,169.25,169.24,60.0]
[1717087535546,2.1858,169.27,169.24,60.0]
[1717087536062,6.03,169.27,169.24,60.0]
[1717087536237,6.03,169.27,169.24,77.78]
[1717087536849,2.1856,169.29,169.26,60.0]
[1717087537051,6.03,169.27,169.26,60.0]
[1717087537243,2.1853,169.31,169.26,122.78]
[1717087537461,6.03,169.29,169.28,60.0]
[1717087537657,4.3698,169.35,169.3,60.0]
[1717087537863,6.03,169.31,169.3,60.0]
[1717087538259,6.03,169.31,169.3,122.78]
[1717087540960,6.03,169.32,169.3,122.78]
[1717087541273,4.3692,169.37,169.32,60.0]
[1717087541274,2.1846,169.37,169.32,60.0]
[1717087541476,6.03,169.34,169.32,60.0]
[1717087541776,6.03,169.34,169.32,77.78]
[1717087542357,2.1847,169.36,169.34,60.0]
[1717087542581,6.03,169.35,169.34,60.0]
[1717087542975,2.1846,169.37,169.34,60.0]
[1717087543274,2.1846,169.37,169.34,77.78]
[1717087543476,6.03,169.35,169.34,77.78]
[1717087543960,6.03,169.35,169.34,122.78]
[1717087544161,2.1844,169.39,169.34,122.78]
[1717087544380,2.1842,169.4,169.36,60.0]
[1717087544565,6.03,169.37,169.36,60.0]
[1717087544874,4.3676,169.43,169.36,122.78]
[1717087545069,6.03,169.38,169.37,45.0]
[1717087545268,4.3676,169.43,169.38,60.0]
[1717087545487,6.03,169.39,169.38,60.0]
[1717087547178,4.3676,169.43,169.37,62.78]
[1717087547376,6.03,169.39,169.37,62.78]
[1717087547981,2.1842,169.4,169.37,62.78]
[1717087548160,6.03,169.39,169.37,62.78]
[1717087548363,2.1842,169.4,169.37,62.78]
[1717087548773,6.03,169.39,169.37,62.78]
[1717087548975,2.1839,169.42,169.39,60.0]
[1717087549690,6.03,169.41,169.39,77.78]
[1717087550286,2.1839,169.42,169.41,60.0]
[1717087550586,8.2139,169.42,169.41,60.0]
[1717087550893,6.03,169.42,169.41,60.0]
[1717087551715,2.1836,169.44,169.41,105.0]
[1717087552277,6.03,169.42,169.41,105.0]
[1717087552507,6.03,169.43,169.41,105.0]
[1717087552896,2.1836,169.44,169.41,105.0]
[1717087553097,6.03,169.43,169.41,105.0]
[1717087553309,6.03,169.43,169.41,122.78]
[1717087553607,4.926e-05,169.45,169.43,60.0]
[1717087553804,6.03,169.44,169.43,60.0]
[1717087555103,6.03,169.44,169.42,45.0]
[1717087555315,6.03,169.43,169.41,77.78]
[1717087555816,6.03,169.42,169.41,60.0]
[1717087558383,2.1836,169.44,169.41,60.0]
[1717087558610,6.03,169.42,169.41,60.0]
[1717087559412,6.03,169.42,169.39,79.9643]
[1717087559717,4.926e-05,169.45,169.38,60.0]
[1717087560034,6.03,169.41,169.38,79.9644]
[1717087560193,2.1839,169.42,169.36,60.0]
[1717087560503,6.03,169.39,169.36,62.1846]
[1717087561208,6.03,169.44,169.38,60.0]
[1717087561414,24.12,169.44,169.38,60.0]
[1717087562085,4.926e-05,169.45,169.4,60.0]
[1717087562283,6.03,169.42,169.4,60.0]
[1717087562696,6.03,169.42,169.4,77.78]
[1717087563411,4.926e-05,169.45,169.43,60.0]
[1717087563719,6.03004926,169.45,169.43,60.0]
[1717087564017,4.926e-05,169.45,169.43,60.0]
[1717087564203,6.03004926,169.45,169.43,60.0]
[1717087564513,6.03,169.44,169.43,60.0]
[1717087564694,6.03,169.44,169.43,105.0]
[1717087565010,6.03,169.44,169.41,79.964]
[1717087565313,6.03,169.44,169.42,45.0]
[1717087565617,4.926e-05,169.45,169.43,60.0]
[1717087565914,6.03,169.44,169.42,62.78]
[1717087566081,4.926e-05,169.45,169.41,60.0]
[1717087566291,6.03,169.44,169.41,79.964]
[1717087567494,6.03,169.44,169.43,60.0]
[1717087568115,6.03,169.44,169.43,105.0]
[1717087568294,4.926e-05,169.45,169.43,124.9637]
[1717087568492,4.926e-05,169.45,169.44,62.78]
[1717087570297,4.926e-05,169.45,169.44,64.9636]
[1717087571108,4.926e-05,169.45,169.44,62.78]
[1717087572034,4.926e-05,169.45,169.44,70.9936]
[1717087573425,6.03,169.5,169.49,60.0]
[1717087573997,8.2129,169.5,169.47,77.78]
[1717087574200,6.03,169.49,169.46,17.78]
[1717087574822,6.03,169.57,169.43,62.1837]
[1717087574823,6.03,169.47,169.43,62.1837]
[1717087575001,2.1831,169.48,169.43,62.1837]
[1717087575002,6.03,169.45,169.43,62.1837]
[1717087575198,6.03,169.57,169.46,17.78]
[1717087575403,6.03,169.49,169.47,60.0]
[1717087575830,2.1826,169.52,169.47,60.0]
[1717087576131,6.03,169.49,169.47,60.0]
[1717087576305,4.3638,169.58,169.51,60.0]
[1717087576506,2.1824,169.54,169.51,60.0]
[1717087576713,4.364,169.57,169.49,77.78]
[1717087576714,6.03,169.52,169.49,77.78]
[1717087576918,6.03,169.5,169.49,60.0]
[1717087577131,6.03,169.51,169.48,45.0]
[1717087577326,6.03,169.51,169.49,60.0]
[1717087577555,6.03,169.51,169.5,45.0]
[1717087578130,6.03,169.51,169.49,77.78]
[1717087578542,6.03,169.51,169.5,62.78]
[1717087578711,6.03,169.51,169.47,60.0]
[1717087578913,6.03,169.48,169.47,60.0]
[1717087579120,6.03,169.48,169.47,105.0]
[1717087580705,2.1828,169.51,169.49,60.0]
[1717087580906,6.03,169.5,169.49,60.0]
[1717087581304,6.03,169.59,169.52,60.0]
[1717087581506,17.78,169.7,169.52,60.0]
[1717087581507,5.20568818,169.63,169.52,60.0]
[1717087581725,6.03,169.53,169.52,60.0]
[1717087582133,6.98896293,169.6,169.52,62.1825]
[1717087582318,2.1821,169.56,169.52,60.0]
[1717087582712,2.1821,169.56,169.52,77.78]
[1717087582928,6.03,169.55,169.52,77.78]
[1717087583109,6.03,169.55,169.54,60.0]
[1717087584742,6.03,169.55,169.53,45.0]
[1717087584914,6.03,169.54,169.52,45.0]
[1717087585114,6.03,169.54,169.51,77.78]
[1717087585115,6.03,169.53,169.51,77.78]
[1717087586129,6.03,169.52,169.49,60.0]
[1717087586335,4.3646,169.55,169.47,77.78]
[1717087586534,6.03,169.48,169.47,77.78]
[1717087587910,6.03,169.48,169.47,60.0]
[1717087588224,6.03,169.48,169.22,650.87677317]
[1717087588225,6.03,169.48,169.45,60.0]
[1717087588427,6.03,169.46,169.42,62.1838]
[1717087588612,6.03,169.45,169.42,60.0]
[1717087588824,6.03,169.44,169.42,60.0]
[1717087589022,2.1833,169.47,169.44,60.0]
[1717087589254,6.16647003,169.56,169.44,77.78]
[1717087589547,6.03,169.48,169.46,77.78]
[1717087589926,4.365,169.53,169.48,60.0]
[1717087590244,6.03,169.49,169.48,77.78]
[1717087590438,6.03,169.49,169.48,122.78]
[1717087590835,2.1826,169.52,169.5,60.0]
[1717087591154,6.03,169.51,169.5,60.0]
[1717087591521,6.03,169.51,169.48,122.78]
[1717087591726,6.03,169.5,169.49,62.78]
[1717087593444,4.3645,169.55,169.5,60.0]
[1717087593653,6.03,169.51,169.5,60.0]
[1717087593854,6.03,169.51,169.5,105.0]
[1717087594145,2.1825,169.53,169.5,122.78]
[1717087594353,6.03,169.51,169.5,122.78]
[1717087594529,4.364,169.57,169.52,60.0]
[1717087594719,8.2125,169.53,169.52,60.0]
[1717087595546,8.2125,169.53,169.52,105.0]
[1717087597256,2.1826,169.52,169.5,77.78]
[1717087597624,8.2126,169.52,169.5,77.78]
[1717087597842,8.2127,169.51,169.5,17.78]
[1717087598151,8.2123,169.55,169.53,77.78]
[1717087598541,6.03,169.55,169.53,77.78]
[1717087598943,8.2122,169.55,169.53,77.78]
[1717087599243,6.03,169.55,169.53,77.78]
[1717087600226,2.1821,169.56,169.55,60.0]
[1717087600432,2.182,169.57,169.55,60.0]
[1717087600651,6.03,169.56,169.55,60.0]
[1717087600852,8.2121,169.56,169.55,60.0]
[1717087602054,8.2121,169.56,169.53,77.78]
[1717087602238,8.2121,169.56,169.54,45.0]
[1717087603675,2.1821,169.56,169.53,60.0]
[1717087603884,6.03,169.54,169.48,60.0]
[1717087604183,2.1824,169.54,169.5,60.0]
[1717087604387,6.03,169.51,169.5,60.0]
[1717087604548,6.03,169.52,169.5,60.0]
[1717087604876,6.03,169.52,169.5,77.78]